Cogmind - Beta 9.6 @@@ ROGUE MODE // 2020.05.17 @ 23:15:12 Player: Nivek Result: Destroyed by G-34 Mercenary with Small Laser Performance ------------- Evolutions (0) 0 Regions Visited (1) 200 Robots Destroyed (8) 40 Value Destroyed (169) 169 Prototype IDs (0) 0 Alien Tech Used (0) 0 Bonus (0) 0 TOTAL SCORE: 409 Bonus ------- None Cogmind --------- Core Integrity 0/250 Matter 236/300 Energy 29/100 System Corruption 0% Temperature Cool (46) Movement Core (100) Ox1 Location -10/Materials Parts ------- > --- POWER (1) -------- (None) > --- PROPULSION (2) --- (None) > --- UTILITY (2) ------ (None) > --- WEAPON (2) ------- EM Shotgun EM Shotgun > --- INVENTORY (4) ---- (None) Peak State ------------ > --- POWER ------------ Light Ion Engine > --- PROPULSION ------- Wheel Wheel > --- UTILITY ---------- Heat Sink > --- WEAPON ----------- Assault Rifle Light Assault Rifle > --- INVENTORY -------- (None) [Rating: 6] Favorites ----------- Power Light Ion Engine Engine Light Ion Engine Propulsion Wheel Wheel Wheel Utility Heat Sink Device Heat Sink Weapon Light Assault Rifle Energy Gun EM Shotgun Ballistic Gun Light Assault Rifle Build | -11 -10 ------- Run | Scr Mat Slots Evolved . | . . Power . | . . Propulsion . | . . Utility . | . . Weapon . | . . Parts Attached 12 | 9 3 Power 5 | 5 . Engine 5 | 5 . Core . | . . Reactor . | . . Propulsion 2 | 2 . Treads . | . . Leg . | . . Wheel 2 | 2 . Hover . | . . Flight . | . . Utility 1 | . 1 Device 1 | . 1 Storage . | . . Processor . | . . Hackware . | . . Protection . | . . Artifact . | . . Weapon 4 | 2 2 Energy Gun 2 | . 2 Energy Cannon . | . . Ballistic Gun 2 | 2 . Ballistic Cannon . | . . Launcher . | . . Special Weapon . | . . Impact Weapon . | . . Slashing Weapon . | . . Piercing Weapon . | . . Special Melee Weapon . | . . Unidentified Prototypes . | . . Parts Lost 6 | . 6 Power 1 | . 1 Propulsion 2 | . 2 Utility 1 | . 1 Weapon 2 | . 2 Highest Loss Streak 6 | . 6 Average Slot Usage (%) 73 | . 73 Engine 11 | . 11 Wheel 25 | . 25 Device 9 | . 9 Energy Gun 1 | . 1 Ballistic Gun 23 | . 23 Naked Turns 2 | . 2 Heaviest Build 7 | 6 7 Greatest Support 20 | 20 20 Greatest Overweight (x) 1 | 1 1 Average Overweight (x) . | . . Largest Inventory Capacity 4 | 4 4 Average Capacity 4 | 4 4 Most Carried 4 | 4 2 Average Carried . | . . Final Capacity 4 | 4 4 Final Carried . | . . Class Distribution -------------------- 100% | Mutant Dominant Class ---------------- Mutant | -10/Materials Resources | -11 -10 ----------- Run | Scr Mat Matter Collected 380 | 282 98 Remotely . | . . Salvage Created 227 | 52 175 Parts 16 | 3 13 Haulers Intercepted . | . . Recyclers Shooed 1 | . 1 Parts Field Recycled . | . . Retrieved Matter . | . . Parts Self-Destructed . | . . Prevented . | . . Kills | -11 -10 ------- Run | Scr Mat Combat Hostiles Destroyed 4 | 1 3 Guns 4 | 1 3 Classes Destroyed 4 | 2 2 Worker 2 | 1 1 Builder 1 | . 1 Watcher 1 | . 1 Grunt 4 | 1 3 Best Kill Streak 3 | 1 3 Combat Bots Only 2 | 1 2 Max Kills in Single Turn 1 | 1 1 Gunslinging . | . . Exploded . | . . Melee . | . . Uniques/NPCs Destroyed . | . . Combat | -11 -10 -------- Run | Scr Mat Damage Taken 672 | 23 649 Core 255 | . 255 Absorbed by Shields . | . . Core Remaining (%) 100 | 100 . Volleys Fired 42 | 8 34 Largest 2 | 2 2 Hottest 90 | 40 90 Shots Fired 82 | 16 66 Gun 82 | 16 66 Cannon . | . . Launcher . | . . Special . | . . Kinetic 78 | 16 62 Thermal . | . . Explosive . | . . Electromagnetic 4 | . 4 Robot Hit Streak 11 | 4 11 Robot Miss Streak 7 | 3 7 Penetration Max . | . . Secondary Targets 1 | . 1 Max Gunslinging Chain 1 | . 1 Shots Hit Robots 51 | 9 42 Core Hits 17 | 5 12 Critical Hits . | . . Critical Kills . | . . Critical Parts Destroyed . | . . Melee Attacks . | . . Impact . | . . Slashing . | . . Piercing . | . . Sneak Attacks . | . . Combat Hostiles . | . . Follow-up Attacks . | . . Damage Inflicted 506 | 124 382 Guns 506 | 124 382 Cannons . | . . Explosions . | . . Melee . | . . Ramming . | . . Kinetic 495 | 124 371 Thermal . | . . Explosive . | . . Electromagnetic 11 | . 11 Impact . | . . Slashing . | . . Piercing . | . . Highest Corruption . | . . Average Corruption . | . . Corruption Purged . | . . Overload Shots . | . . Overflow Damage . | . . Projectiles . | . . Explosions . | . . Melee . | . . Knockbacks . | . . Impact . | . . Kinetic . | . . Secondary . | . . Self-Inflicted Damage . | . . Shots . | . . Rammed . | . . Targets Rammed . | . . Kicked . | . . Crushed . | . . Highest Temperature 59 | 6 59 Average Temperature 19 | 6 21 Received Heat Transfer 366 | 12 354 Siege Activations . | . . Robots Corrupted . | . . Combat Hostiles . | . . Parts Fried . | . . Impact Corruptions . | . . Robots Melted . | . . Combat Hostiles . | . . Parts Melted . | . . Heat Transferred . | . . Parts Sabotaged . | . . Parts Stolen . | . . Parts Stripped . | . . Power Chain Reactions . | . . Missiles Intercepted . | . . Alert | -11 -10 ------- Run | Scr Mat Peak Influence 137 | 25 137 Average Influence 47 | 10 77 Maximum Alert Level . | . . Low Security (%) 100 | 100 100 Level 1 . | . . Level 2 . | . . Level 3 . | . . Level 4 . | . . Level 5 . | . . High Security . | . . Max Security . | . . Squads Dispatched 4 | . 4 Investigation 4 | . 4 Extermination . | . . Reinforcement . | . . Assault . | . . Garrison . | . . Intercept . | . . Construction Impeded . | . . Haulers Reinforced . | . . Stealth | -11 -10 --------- Run | Scr Mat Distress Signals 1 | . 1 Communications Jammed . | . . Distress Signals . | . . Times Spotted 11 | 1 10 Peak Tracking Total 7 | 1 7 Tactical Retreats . | . . Traps | -11 -10 ------- Run | Scr Mat Traps Triggered . | . . Indirectly . | . . Trap Hack Attempts . | . . Triggered . | . . Disarmed . | . . Reprogrammed . | . . Reused . | . . Traps Extracted . | . . Installed . | . . Triggered . | . . Machines | -11 -10 ---------- Run | Scr Mat Machines Disabled 1 | . 1 Max in Single Turn 1 | . 1 Machines Sabotaged . | . . Garrisons Compromised . | . . Overloaded Fab Kills . | . . Fab Network Shutdowns . | . . Hacking | -11 -10 --------- Run | Scr Mat Machines Accessed 2 | . 2 Terminals 2 | . 2 Fabricators . | . . Repair Stations . | . . Recycling Units . | . . Scanalyzers . | . . Garrison Access . | . . Total Hacks 14 | . 14 Successful 8 | . 8 Failed 4 | . 4 Catastrophic . | . . Database Lockouts 2 | . 2 Manual . | . . Terminals 14 | . 14 Fabricators . | . . Repair Stations . | . . Recycling Units . | . . Scanalyzers . | . . Garrison Access . | . . Terminal Hacks 8 | . 8 Record 6 | . 6 Dispatch Records 1 | . 1 Maintenance Status 1 | . 1 Fabricator Hacks . | . . Repair Station Hacks . | . . Recycling Unit Hacks . | . . Scanalyzer . | . . Garrison Access Hacks . | . . Unauthorized Hacks . | . . Terminals . | . . Fabricators . | . . Repair Stations . | . . Recycling Units . | . . Scanalyzers . | . . Garrison Access . | . . Data Cores Recovered . | . . Used . | . . Hacking Detections 2 | . 2 Full Trace Events 2 | . 2 Feedback Events . | . . Feedback Blocked . | . . Robot Schematics Acquired . | . . Robots Built . | . . Matter . | . . Time . | . . Total Robot Build Rating . | . . Part Schematics Acquired . | . . Parts Built . | . . Matter . | . . Time . | . . Total Part Build Rating . | . . Parts Repaired . | . . Time . | . . Parts Recycled . | . . Recycled Matter . | . . Retrieved Matter . | . . Retrieved Components . | . . Parts Scanalyzed . | . . Part Schematics Acquired . | . . Parts Damaged . | . . Bothacking | -11 -10 ------------ Run | Scr Mat Used RIF Installer . | . . Robots Hacked . | . . Non-combat . | . . Combat . | . . Robot Hacks Applied . | . . Relay Couplers Released . | . . Robots Rewired . | . . Allies Hacked . | . . Hacks Repelled . | . . Allies | -11 -10 -------- Run | Scr Mat Total Allies . | . . Largest Group . | . . Highest-Rated Group . | . . Highest-Rated Ally . | . . Total Orders . | . . Ally Attacks . | . . Total Damage . | . . Kills . | . . Allies Corrupted . | . . Allies Melted . | . . Intel | -11 -10 ------- Run | Scr Mat Robot Analysis Total . | . . Derelict Logs Recovered . | . . Drone Launches . | . . Drone Recoveries . | . . Exploration | -11 -10 ------------- Run | Scr Mat Turns Passed 341 | 153 188 Spaces Moved 255 | 146 109 Core 78 | 76 2 Treads . | . . Legs . | . . Wheels 177 | 70 107 Hover . | . . Flight . | . . Fastest Speed 50 | 50 50 Average Speed 76 | 74 79 Slowest Speed 100 | 100 100 Overloaded Moves . | . . Propulsion Burnouts . | . . Robots Hopped . | . . Cave-ins Triggered . | . . Exploration Rate (%) 13 | 6 20 Regions Visited 1 Branch Regions . Pre-discovered Areas . | . . Known Exits Taken . | . . Unknown Exits Taken 1 | 1 . Scrap Searched . | . . Spaces Dug . | . . Terrain Destroyed . | . . Melee . | . . Projectile . | . . AOE . | . . Actions | -11 -10 --------- Run | Scr Mat Total 325 | 175 150 Wait 1 | . 1 Move 254 | 145 109 Hop . | . . Pick Up 12 | 9 3 Fast Attach . | . . Attach 8 | 5 3 Detach . | . . Swap 4 | 4 . Drop 4 | 4 . Fire 42 | 8 34 Melee . | . . Ram . | . . Kick . | . . Crush . | . . Escape Stasis . | . . Rewire . | . . Trap . | . . Miscellaneous . | . . Route ------- -11/Scrapyard -10/Materials (discovered 1 exit: [*Min]) History --------- Turn | Location | Event 2 | -11/Scrapyard | Met Revision 17 95 | -11/Scrapyard | Discovered new exit (range 8) 154 | -11/Scrapyard | Entered Materials 283 | -10/Materials | Discovered new exit (range 13) 286 | -10/Materials | Central database locked down 286 | -10/Materials | Central database locked down 314 | -10/Materials | Build established: Mutant 322 | -10/Materials | Core integrity fell below 50% 335 | -10/Materials | Core integrity fell below 20% 342 | -10/Materials | Destroyed by G-34 Mercenary with Small Laser Last Messages --------------- R-06 Scavenger sends out distress signal. [Achievement: Party Time] G-34 Mercenary destroyed. Switching to secondary target: G-34 Mercenary. You may prefer to play using a different font style. Try some of the others via the option menu's first option. Lgt. Ion Engine destroyed. Assault Rifle destroyed. G-34 Mercenary destroyed. Acquired 35 matter. Lgt. Assault Rifle destroyed. Wheel destroyed. Heat Sink destroyed. Acquired EM Shotgun. Wheel destroyed. Acquired EM Shotgun. To regain energy, simply wait via the mouse wheel '.', or KP5. Also make sure your per-turn energy generation is a net positive, and consider deactivating power-draining parts if not. [Achievement: First Step to Greatness] Map ----- +----------------------------------------------------+ | ?????????????????????????????????????????????????? | | ???????????????????????????????????????????????#?? | | ???????????????????????????????????????????????# ? | | ???????????????????????????????????????????????# | | ???????????????????????????????????????????????# | | ???????????????????????????????????????????????# | | ???????????????????????????????????????????????# | | ???????????????????????????????????????????????# | | ???????????????????????????????????????????????# | | ???????????????????????????????????????????????# | | ????????????? ???????????????????????????????# | | ????????????? ???????????????????????????????# | | ????????????? #?????????????????????????????## | | ????????????? #?????????????????????????????# | | ????????????? #?????????????????????????????# | | ????????????? #?????????????????????????????# T | | ????????????? #?????????????????????????????# | | ????????????# ??????????????????????????????# | | ???????????## ????????????????#######???????## # | | ???????????? ???######+####### ########## # | | ???????????? ????# * # | | ???????????? ????# % T # | | ????????????# #????# """ # | | ????????????# #????# ########## # """" # | | ????????#####*#???## ## [#???####### """""= # | | ????????# * ##### @ [#?????#!! """"" # | | ????????# =%=w g !!#?????#!! """ # | | ????????+ T!== g T !!#?????#]] | | ????????# [ * !g g ]]#?????#]] | | ????????# ##### ]]#?????#[[ | | ????????## ##???## t######?????#[[ ######## | | ?????????# #?????# #??????????##### #??????? | | ?????????# #?????# #??????????????# #??????? | | ?????????# #?????# #??????????????# #??????? | | ?????????# #?????# #??????????????# #??????? | | ????????? ?????# #??????????????? #??????? | | ???????? ?????# #??????????????? ???????? | | ???????? ?????# +?????????????????????????? | | ???????# < ?????# #?????????????????????????? | | ???????# ?????#^ ^+?????????????????????????? | | ???????#"" "?????## ##?????????????????????????? | | ????????#"!!!"??????# ???????????????????????????? | | ?????????#"""???????# ???????????????????????????? | | ????????????????????# ???????????????????????????? | | ????????????????????# ???????????????????????????? | | ????????????????????# ???????????????????????????? | | ????????????????????? ???????????????????????????? | | ?????????????????????+???????????????????????????? | | ?????????????????????????????????????????????????? | | ?????????????????????????????????????????????????? | +----------------------------------------------------+ Best States ------------- Heat Dissipation 35 Energy Generation 10 Energy Capacity 250 Matter Stores 300 Matter Capacity 300 Sight Range 16 Terrain Scan Density 10 Evasion (%) 50 Item Schematics ----------------- None Robot Schematics ------------------ None Fabricated ------------ Nothing Alien Tech Used ----------------- None Achievements -------------- Crack Shot First Step to Greatness One Hack Too Far Party Time Storm Trooper Challenges ------------ None Game ------ Seed FactoryGravmagCompressor Manual? 0 Play Time 00:16:40 Cumulative 0.5 hours Start 2020.05.17 @ 22:54:51 End 2020.05.17 @ 23:15:12 Sessions 1 Manual Loads 0 Difficulty Rogue Special Mode None Game No. 1 Rogue 1 Adventurer 0 Explorer 0 Win Type - Total 0 Types 0/0/0/0/0/0/0 Lore% 0 Gallery% 0 Achievement% 1 Wizard Run 0 Options --------- ASCII 0 Keyboard 0 Movement Mouse Keybinds 0 Fullscreen 1 Font 24/Smallcaps Map View 76x50 Tactical HUD 0 Map Filters NONE Filters NONE Steam 1 RUN: ace33f9d-ab81-4832-b3c4-01369c122358